[Event "*** Titled Tuesday 3|2 Blitz"]
[Site "Chess.com"]
[Date "2016.07.05"]
[Round "6"]
[White "Izoria123"]
[Black "JusticeBot"]
[Result "1-0"]
[WhiteElo "2605"]
[BlackElo "2554"]
[TimeControl "180+2"]
[EndTime "18:14:35 PDT"]
[Termination "Izoria123 won by resignation"]

1. d4 {[%clk 0:03:01.9]} 1... Nf6 {[%clk 0:03:00.7]} 2. Nf3 {[%clk 0:03:02.1]}
2... e6 {[%clk 0:03:01.5]} 3. c4 {[%clk 0:03:01.6]} 3... b6 {[%clk 0:03:02.4]}
4. a3 {[%clk 0:02:59.9]} 4... Bb7 {[%clk 0:03:02.9]} 5. Nc3 {[%clk 0:03:00.6]}
5... d5 {[%clk 0:02:56.7]} 6. cxd5 {[%clk 0:03:01.2]} 6... Nxd5 {[%clk
0:02:57.4]} 7. e3 {[%clk 0:03:02]} 7... Be7 {[%clk 0:02:47.8]} 8. Bb5+ {[%clk
0:03:02]} 8... c6 {[%clk 0:02:48.2]} 9. Bd3 {[%clk 0:03:03]} 9... O-O {[%clk
0:02:45.2]} 10. Qc2 {[%clk 0:03:02.8]} 10... f5 {[%clk 0:02:40.8]} 11. e4 {[%clk
0:02:50.1]} 11... Nxc3 {[%clk 0:02:35.9]} 12. bxc3 {[%clk 0:02:50.4]} 12... Ba6
{[%clk 0:02:00.6]} 13. O-O {[%clk 0:02:31.2]} 13... Bxd3 {[%clk 0:01:57.2]} 14.
Qxd3 {[%clk 0:02:33.1]} 14... fxe4 {[%clk 0:01:58.9]} 15. Qxe4 {[%clk
0:02:34.1]} 15... Qd5 {[%clk 0:02:00.6]} 16. Qe2 {[%clk 0:01:57.3]} 16... Bd6
{[%clk 0:01:42.1]} 17. Re1 {[%clk 0:01:57.5]} 17... Rf6 {[%clk 0:01:33.2]} 18.
c4 {[%clk 0:01:49.5]} 18... Qf5 {[%clk 0:01:34.4]} 19. Bg5 {[%clk 0:01:40.5]}
19... Rg6 {[%clk 0:01:31.2]} 20. Bh4 {[%clk 0:01:41.4]} 20... Nd7 {[%clk
0:01:25.5]} 21. Bg3 {[%clk 0:01:42]} 21... Bxg3 {[%clk 0:01:25.4]} 22. hxg3
{[%clk 0:01:43.9]} 22... Rf6 {[%clk 0:01:22.4]} 23. a4 {[%clk 0:01:43.4]} 23...
Raf8 {[%clk 0:01:17.8]} 24. Ra3 {[%clk 0:01:42.9]} 24... g5 {[%clk 0:01:12.8]}
25. Re3 {[%clk 0:01:31.6]} 25... g4 {[%clk 0:01:05]} 26. Nh2 {[%clk 0:01:30.5]}
26... c5 {[%clk 0:00:47.6]} 27. Nxg4 {[%clk 0:01:09]} 27... Rg6 {[%clk
0:00:48.9]} 28. Re4 {[%clk 0:01:07.4]} 28... cxd4 {[%clk 0:00:45.9]} 29. Rxd4
{[%clk 0:01:00.1]} 29... e5 {[%clk 0:00:46.3]} 30. Rxd7 {[%clk 0:00:56.9]} 30...
Rxg4 {[%clk 0:00:32.9]} 31. Rxa7 {[%clk 0:00:55.8]} 31... e4 {[%clk 0:00:29.9]}
32. Re7 {[%clk 0:00:49.2]} 32... Qc5 {[%clk 0:00:28.4]} 33. Rxe4 {[%clk
0:00:44.6]} 33... Rxe4 {[%clk 0:00:28.6]} 34. Qxe4 {[%clk 0:00:45.8]} 34...
Qxf2+ {[%clk 0:00:21.4]} 35. Kh2 {[%clk 0:00:46.8]} 35... Rf6 {[%clk 0:00:23]}
36. Qe8+ {[%clk 0:00:42.1]} 36... Kg7 {[%clk 0:00:22.9]} 37. Re7+ {[%clk
0:00:40.8]} 37... Kh6 {[%clk 0:00:24.4]} 38. Re4 {[%clk 0:00:37.7]} 38... Qf5
{[%clk 0:00:13.5]} 39. Qe7 {[%clk 0:00:33]} 39... Kg6 {[%clk 0:00:12.9]} 40. Rf4
{[%clk 0:00:30.9]} 40... Qh5+ {[%clk 0:00:13.3]} 41. Rh4 {[%clk 0:00:32.2]} 1-0

[Event "*** Titled Tuesday 3|2 Blitz"]
[Site "Chess.com"]
[Date "2016.07.05"]
[Round "6"]
[White "AdrianaNikolova"]
[Black "proxy6"]
[Result "0-1"]
[WhiteElo "2283"]
[BlackElo "1938"]
[TimeControl "180+2"]
[EndTime "18:16:17 PDT"]
[Termination "proxy6 won by checkmate"]

1. e4 {[%clk 0:03:01.9]} 1... c5 {[%clk 0:02:59.2]} 2. Nf3 {[%clk 0:03:01.8]}
2... d6 {[%clk 0:03:00.6]} 3. d4 {[%clk 0:03:01.5]} 3... cxd4 {[%clk 0:03:01.9]}
4. Nxd4 {[%clk 0:03:03]} 4... Nf6 {[%clk 0:03:03.2]} 5. Nc3 {[%clk 0:03:04.2]}
5... Nc6 {[%clk 0:03:03.4]} 6. Bg5 {[%clk 0:03:05.7]} 6... e6 {[%clk 0:03:04.5]}
7. Qd2 {[%clk 0:03:05]} 7... a6 {[%clk 0:03:05.4]} 8. O-O-O {[%clk 0:03:05.6]}
8... Bd7 {[%clk 0:03:06]} 9. f4 {[%clk 0:03:06.7]} 9... b5 {[%clk 0:03:05.6]}
10. Nf3 {[%clk 0:03:00.7]} 10... h6 {[%clk 0:02:50.2]} 11. Bxf6 {[%clk
0:02:57.1]} 11... gxf6 {[%clk 0:02:52.1]} 12. e5 {[%clk 0:02:35.6]} 12... d5
{[%clk 0:02:45.4]} 13. exf6 {[%clk 0:02:33]} 13... Qxf6 {[%clk 0:02:45.5]} 14.
Nxd5 {[%clk 0:02:21.9]} 14... exd5 {[%clk 0:02:45.5]} 15. Qxd5 {[%clk
0:02:23.8]} 15... O-O-O {[%clk 0:02:44.8]} 16. Bd3 {[%clk 0:01:47.5]} 16... Bg7
{[%clk 0:02:44.2]} 17. c3 {[%clk 0:01:35]} 17... Bg4 {[%clk 0:02:18.8]} 18. Qc5
{[%clk 0:01:29.2]} 18... Kb7 {[%clk 0:02:10.4]} 19. Kb1 {[%clk 0:00:51]} 19...
Qd6 {[%clk 0:01:27.8]} 20. Qf2 {[%clk 0:00:45]} 20... Qxf4 {[%clk 0:01:24.4]}
21. h3 {[%clk 0:00:40.9]} 21... Be6 {[%clk 0:01:24.1]} 22. Rhe1 {[%clk
0:00:35.4]} 22... Qc7 {[%clk 0:01:24.8]} 23. Be4 {[%clk 0:00:33.8]} 23... Qb6
{[%clk 0:01:15.8]} 24. Qg3 {[%clk 0:00:29.4]} 24... Bf6 {[%clk 0:01:06]} 25. Qf4
{[%clk 0:00:29.7]} 25... Bg5 {[%clk 0:00:41.1]} 26. Nxg5 {[%clk 0:00:27.3]}
26... hxg5 {[%clk 0:00:43]} 27. Qxg5 {[%clk 0:00:26.8]} 27... Rhg8 {[%clk
0:00:36.4]} 28. Qe7+ {[%clk 0:00:22.9]} 28... Qc7 {[%clk 0:00:32.9]} 29. Qc5
{[%clk 0:00:20.3]} 29... Rxd1+ {[%clk 0:00:20.3]} 30. Rxd1 {[%clk 0:00:20.5]}
30... Rc8 {[%clk 0:00:21.8]} 31. Rd6 {[%clk 0:00:20]} 31... Qb6 {[%clk
0:00:21.7]} 32. Qg5 {[%clk 0:00:06.8]} 32... Qg1+ {[%clk 0:00:21.9]} 33. Kc2
{[%clk 0:00:07.4]} 33... Qf2+ {[%clk 0:00:22.7]} 34. Rd2 {[%clk 0:00:07.3]}
34... Qb6 {[%clk 0:00:22.9]} 35. Qe7+ {[%clk 0:00:08.8]} 35... Qc7 {[%clk
0:00:23]} 36. Qc5 {[%clk 0:00:09.5]} 36... Qb6 {[%clk 0:00:22.8]} 37. Qe7+
{[%clk 0:00:10.2]} 37... Rc7 {[%clk 0:00:23.9]} 38. Qd6 {[%clk 0:00:12]} 38...
Ka7 {[%clk 0:00:23.2]} 39. Qf8 {[%clk 0:00:10.5]} 39... a5 {[%clk 0:00:15.6]}
40. g4 {[%clk 0:00:11.4]} 40... b4 {[%clk 0:00:15.7]} 41. g5 {[%clk 0:00:08.2]}
41... b3+ {[%clk 0:00:15.2]} 42. axb3 {[%clk 0:00:08.9]} 42... Qxb3+ {[%clk
0:00:13.1]} 43. Kc1 {[%clk 0:00:07.7]} 43... Qb6 {[%clk 0:00:12.8]} 44. h4
{[%clk 0:00:07.9]} 44... Qg1+ {[%clk 0:00:13.2]} 45. Kc2 {[%clk 0:00:09.2]}
45... Nb4+ {[%clk 0:00:12.5]} 46. Qxb4 {[%clk 0:00:06.9]} 46... axb4 {[%clk
0:00:14.4]} 47. g6 {[%clk 0:00:08.5]} 47... b3+ {[%clk 0:00:14.8]} 48. Kd3
{[%clk 0:00:09]} 48... Bc4# {[%clk 0:00:16.2]} 0-1

[Event "*** Titled Tuesday 3|2 Blitz"]
[Site "Chess.com"]
[Date "2016.07.05"]
[Round "6"]
[White "E-Shaposhnikov"]
[Black "jcibarra"]
[Result "1-0"]
[WhiteElo "2679"]
[BlackElo "2661"]
[TimeControl "180+2"]
[EndTime "18:16:35 PDT"]
[Termination "E-Shaposhnikov won by resignation"]

1. e4 {[%clk 0:02:55]} 1... c5 {[%clk 0:02:59.4]} 2. Nf3 {[%clk 0:02:55.9]} 2...
d6 {[%clk 0:02:59.8]} 3. Bc4 {[%clk 0:02:57.3]} 3... Nf6 {[%clk 0:02:57.8]} 4.
e5 {[%clk 0:02:58.1]} 4... dxe5 {[%clk 0:02:52.6]} 5. Nxe5 {[%clk 0:03:00]} 5...
e6 {[%clk 0:02:53.1]} 6. Qe2 {[%clk 0:03:01.6]} 6... Bd6 {[%clk 0:02:50.6]} 7.
b3 {[%clk 0:03:02.6]} 7... O-O {[%clk 0:02:51]} 8. Bb2 {[%clk 0:03:02.9]} 8...
Nbd7 {[%clk 0:02:40.2]} 9. f4 {[%clk 0:02:58.8]} 9... b6 {[%clk 0:02:32.5]} 10.
O-O {[%clk 0:02:56.3]} 10... Bb7 {[%clk 0:02:31.3]} 11. a4 {[%clk 0:02:45.3]}
11... Nd5 {[%clk 0:02:19.8]} 12. g3 {[%clk 0:02:31.7]} 12... Qc7 {[%clk
0:02:16.5]} 13. Nf3 {[%clk 0:02:22.5]} 13... Rfe8 {[%clk 0:02:07.1]} 14. Nc3
{[%clk 0:02:17.8]} 14... Nxc3 {[%clk 0:02:05.5]} 15. Bxc3 {[%clk 0:02:03.3]}
15... Rad8 {[%clk 0:01:57.9]} 16. a5 {[%clk 0:02:01.4]} 16... Bd5 {[%clk
0:01:38.6]} 17. axb6 {[%clk 0:01:54.6]} 17... axb6 {[%clk 0:01:40.5]} 18. Ng5
{[%clk 0:01:53.3]} 18... h6 {[%clk 0:01:23.2]} 19. Ne4 {[%clk 0:01:31.4]} 19...
Bf8 {[%clk 0:01:23.1]} 20. Bb5 {[%clk 0:01:23.1]} 20... Ra8 {[%clk 0:01:14.5]}
21. d3 {[%clk 0:01:19.8]} 21... Rxa1 {[%clk 0:01:12.8]} 22. Rxa1 {[%clk
0:01:21.7]} 22... Ra8 {[%clk 0:01:13]} 23. Rxa8 {[%clk 0:01:10.2]} 23... Bxa8
{[%clk 0:01:13.7]} 24. Qg4 {[%clk 0:01:08.2]} 24... Bc6 {[%clk 0:01:02]} 25.
Bxc6 {[%clk 0:01:08.4]} 25... Qxc6 {[%clk 0:01:03.9]} 26. f5 {[%clk 0:01:10]}
26... exf5 {[%clk 0:01:01.3]} 27. Qxf5 {[%clk 0:01:09.5]} 27... Be7 {[%clk
0:00:49.5]} 28. Qf4 {[%clk 0:00:56.7]} 28... h5 {[%clk 0:00:40.2]} 29. Qf5
{[%clk 0:00:52.8]} 29... g6 {[%clk 0:00:27.7]} 30. Qf4 {[%clk 0:00:53.9]} 30...
Qe6 {[%clk 0:00:19.7]} 31. Kf2 {[%clk 0:00:55]} 31... f5 {[%clk 0:00:17.7]} 32.
Ng5 {[%clk 0:00:51.3]} 32... Qd5 {[%clk 0:00:12.2]} 33. h3 {[%clk 0:00:43.5]}
33... Nf8 {[%clk 0:00:13]} 34. Nf3 {[%clk 0:00:41.8]} 34... Bd6 {[%clk 0:00:13]}
35. Qh6 {[%clk 0:00:39.2]} 35... Kf7 {[%clk 0:00:13.1]} 36. Qh8 {[%clk
0:00:32.3]} 36... Ke8 {[%clk 0:00:13.7]} 37. Bg7 {[%clk 0:00:30.3]} 37... Qf7
{[%clk 0:00:06]} 38. Ng5 {[%clk 0:00:30.2]} 38... Qe7 {[%clk 0:00:07.5]} 39. Nh7
{[%clk 0:00:27.3]} 39... Bxg3+ {[%clk 0:00:08.7]} 40. Kf3 {[%clk 0:00:23]} 40...
Qe1 {[%clk 0:00:08]} 41. Qxf8+ {[%clk 0:00:19.5]} 41... Kd7 {[%clk 0:00:09.9]}
42. Nf6+ {[%clk 0:00:20.9]} 42... Kc7 {[%clk 0:00:10.1]} 43. Qf7+ {[%clk
0:00:16.4]} 43... Kb8 {[%clk 0:00:10.9]} 44. Qe8+ {[%clk 0:00:17.6]} 44... Kc7
{[%clk 0:00:11]} 45. Qxe1 {[%clk 0:00:16.4]} 45... Bxe1 {[%clk 0:00:12.9]} 46.
c4 {[%clk 0:00:15.6]} 46... Kd6 {[%clk 0:00:12.3]} 47. Nd5 {[%clk 0:00:16]}
47... b5 {[%clk 0:00:13.9]} 48. Bf6 {[%clk 0:00:14.2]} 48... bxc4 {[%clk
0:00:14]} 49. dxc4 {[%clk 0:00:14.7]} 49... Bd2 {[%clk 0:00:15.4]} 50. h4 {[%clk
0:00:15.1]} 50... Ke6 {[%clk 0:00:16.1]} 51. Bc3 {[%clk 0:00:13.8]} 51... Bh6
{[%clk 0:00:14.5]} 52. Nf4+ {[%clk 0:00:14.3]} 52... Kf7 {[%clk 0:00:14.7]} 53.
Nd3 {[%clk 0:00:15.3]} 53... Bf8 {[%clk 0:00:15.1]} 54. Be1 {[%clk 0:00:16.2]}
54... Be7 {[%clk 0:00:16]} 55. Bf2 {[%clk 0:00:17.8]} 55... g5 {[%clk
0:00:16.3]} 56. hxg5 {[%clk 0:00:18.2]} 56... Bxg5 {[%clk 0:00:18.2]} 57. Nxc5
{[%clk 0:00:19.1]} 57... Kf6 {[%clk 0:00:18.9]} 58. Nd3 {[%clk 0:00:19.4]} 58...
Ke6 {[%clk 0:00:20]} 59. Nf4+ {[%clk 0:00:20.1]} 59... Ke5 {[%clk 0:00:20.8]}
60. Nxh5 {[%clk 0:00:20.7]} 60... Bd2 {[%clk 0:00:21.1]} 61. Nf4 {[%clk
0:00:20.5]} 61... Bxf4 {[%clk 0:00:21.8]} 62. Bg3 {[%clk 0:00:21.7]} 62... Bxg3
{[%clk 0:00:21.5]} 63. Kxg3 {[%clk 0:00:23.6]} 63... Ke4 {[%clk 0:00:21.9]} 64.
Kf2 {[%clk 0:00:24.2]} 64... Kf4 {[%clk 0:00:22.4]} 65. c5 {[%clk 0:00:25.2]}
65... Ke5 {[%clk 0:00:23.5]} 66. b4 {[%clk 0:00:27.1]} 66... Kd5 {[%clk
0:00:25.1]} 67. Kf3 {[%clk 0:00:28.7]} 1-0

[Event "*** Titled Tuesday 3|2 Blitz"]
[Site "Chess.com"]
[Date "2016.07.05"]
[Round "6"]
[White "anon97531"]
[Black "chessking2151"]
[Result "0-1"]
[WhiteElo "2279"]
[BlackElo "2327"]
[TimeControl "180+2"]
[EndTime "18:17:37 PDT"]
[Termination "chessking2151 won by resignation"]

1. e4 {[%clk 0:03:01.9]} 1... e5 {[%clk 0:03:00.9]} 2. f4 {[%clk 0:03:02.4]}
2... exf4 {[%clk 0:02:59.5]} 3. Nf3 {[%clk 0:03:02.6]} 3... Ne7 {[%clk
0:03:00.2]} 4. h4 {[%clk 0:03:00]} 4... h5 {[%clk 0:02:59.2]} 5. d4 {[%clk
0:02:59.6]} 5... Ng6 {[%clk 0:03:00.2]} 6. Bc4 {[%clk 0:03:00]} 6... c6 {[%clk
0:02:59]} 7. d5 {[%clk 0:02:57.3]} 7... Be7 {[%clk 0:02:57.8]} 8. d6 {[%clk
0:02:30.7]} 8... Bf6 {[%clk 0:02:57.8]} 9. e5 {[%clk 0:02:23.7]} 9... Nxe5
{[%clk 0:02:55.7]} 10. Nxe5 {[%clk 0:02:23.1]} 10... Bxe5 {[%clk 0:02:57.6]} 11.
Qe2 {[%clk 0:02:22.8]} 11... Qf6 {[%clk 0:02:58]} 12. Nc3 {[%clk 0:02:12.4]}
12... O-O {[%clk 0:02:50.1]} 13. Ne4 {[%clk 0:02:12.9]} 13... Qg6 {[%clk
0:02:49.3]} 14. Ng5 {[%clk 0:02:08.9]} 14... Qxd6 {[%clk 0:02:22.3]} 15. Qxh5
{[%clk 0:01:58.2]} 15... Qh6 {[%clk 0:02:21.9]} 16. Bxf7+ {[%clk 0:01:39]} 16...
Kh8 {[%clk 0:02:22.5]} 17. O-O {[%clk 0:01:29.8]} 17... d6 {[%clk 0:02:18.6]}
18. Bg6 {[%clk 0:01:08.4]} 18... Qxh5 {[%clk 0:02:16.4]} 19. Bxh5 {[%clk
0:01:09.6]} 19... Bd7 {[%clk 0:02:12.7]} 20. Nf7+ {[%clk 0:01:04.6]} 20... Kh7
{[%clk 0:02:13.1]} 21. Bxf4 {[%clk 0:01:05.9]} 21... Bxf4 {[%clk 0:02:08.1]} 22.
Rxf4 {[%clk 0:01:06.2]} 22... Na6 {[%clk 0:02:09.1]} 23. Raf1 {[%clk 0:01:05.7]}
23... g6 {[%clk 0:02:04.3]} 24. Be2 {[%clk 0:00:59.2]} 24... Kg7 {[%clk
0:01:51.6]} 25. Bxa6 {[%clk 0:00:56.4]} 25... bxa6 {[%clk 0:01:51.7]} 26. Nxd6
{[%clk 0:00:57.4]} 26... Rxf4 {[%clk 0:01:52.9]} 27. Rxf4 {[%clk 0:00:58.1]}
27... Be6 {[%clk 0:01:54.5]} 28. Ne4 {[%clk 0:00:54.9]} 28... Rd8 {[%clk
0:01:54.7]} 29. Ng5 {[%clk 0:00:46.3]} 29... Bg8 {[%clk 0:01:35.5]} 30. b3
{[%clk 0:00:43.9]} 30... a5 {[%clk 0:01:35.9]} 31. Rf2 {[%clk 0:00:40.5]} 31...
a4 {[%clk 0:01:35.3]} 32. Re2 {[%clk 0:00:37.5]} 32... Kf6 {[%clk 0:01:34.1]}
33. Ne4+ {[%clk 0:00:37.6]} 33... Kg7 {[%clk 0:01:34.9]} 34. Nc5 {[%clk
0:00:38]} 34... axb3 {[%clk 0:01:36.4]} 35. axb3 {[%clk 0:00:38.5]} 35... Rd5
{[%clk 0:01:37.9]} 36. Ne6+ {[%clk 0:00:35.2]} 36... Kf6 {[%clk 0:01:37.7]} 37.
Nf4 {[%clk 0:00:35.9]} 37... Rd1+ {[%clk 0:01:08.3]} 38. Kf2 {[%clk 0:00:35.2]}
38... Bf7 {[%clk 0:01:07]} 39. g3 {[%clk 0:00:34.9]} 39... a5 {[%clk 0:01:07]}
40. Ke3 {[%clk 0:00:34]} 40... Kf5 {[%clk 0:00:53.8]} 41. Rd2 {[%clk 0:00:31.3]}
41... Re1+ {[%clk 0:00:54.3]} 42. Ne2 {[%clk 0:00:31.3]} 42... Bd5 {[%clk
0:00:51.9]} 43. Kf2 {[%clk 0:00:31.5]} 43... Rh1 {[%clk 0:00:53.2]} 44. Nd4+
{[%clk 0:00:30.6]} 44... Kg4 {[%clk 0:00:54.4]} 45. Ne2 {[%clk 0:00:30.5]} 45...
Kf5 {[%clk 0:00:41.7]} 46. Ke3 {[%clk 0:00:28.7]} 46... Ke5 {[%clk 0:00:42.1]}
47. c4 {[%clk 0:00:28.3]} 47... Be6 {[%clk 0:00:33.8]} 48. Nf4 {[%clk
0:00:27.7]} 48... Bf5 {[%clk 0:00:34.4]} 49. Rd8 {[%clk 0:00:16.4]} 49... Re1+
{[%clk 0:00:33.8]} 50. Kd2 {[%clk 0:00:17.7]} 50... Rb1 {[%clk 0:00:34.9]} 51.
Kc3 {[%clk 0:00:16.8]} 51... Rc1+ {[%clk 0:00:36.2]} 52. Kb2 {[%clk 0:00:17.9]}
52... Rc2+ {[%clk 0:00:37.5]} 53. Ka3 {[%clk 0:00:19.5]} 53... Rc3 {[%clk
0:00:38.2]} 54. Ka4 {[%clk 0:00:18.3]} 54... Rxg3 {[%clk 0:00:38.1]} 55. Ne2
{[%clk 0:00:15.1]} 55... Rg2 {[%clk 0:00:39.2]} 56. Nc3 {[%clk 0:00:14.3]} 56...
Rb2 {[%clk 0:00:35.4]} 57. Rd1 {[%clk 0:00:09.2]} 57... Bc2 {[%clk 0:00:32.3]}
58. Re1+ {[%clk 0:00:09.8]} 58... Kd4 {[%clk 0:00:27.8]} 59. Ne2+ {[%clk
0:00:11]} 59... Ke3 {[%clk 0:00:26.1]} 60. Kxa5 {[%clk 0:00:10.6]} 60... Kd2
{[%clk 0:00:25.1]} 61. Rg1 {[%clk 0:00:10.9]} 61... Kxe2 {[%clk 0:00:21.4]} 62.
b4 {[%clk 0:00:12.4]} 62... Kf3 {[%clk 0:00:19.6]} 63. b5 {[%clk 0:00:11.3]}
63... cxb5 {[%clk 0:00:20.8]} 64. cxb5 {[%clk 0:00:12.8]} 64... Be4 {[%clk
0:00:22.5]} 65. b6 {[%clk 0:00:13.1]} 65... Kf4 {[%clk 0:00:22.3]} 66. Ka6
{[%clk 0:00:14]} 66... Bc6 {[%clk 0:00:19.7]} 67. Ka7 {[%clk 0:00:14]} 67... Be4
{[%clk 0:00:19.3]} 68. Ka6 {[%clk 0:00:14.6]} 68... Rb4 {[%clk 0:00:20.1]} 69.
Ka5 {[%clk 0:00:14.9]} 69... Rb2 {[%clk 0:00:21.4]} 70. Ka6 {[%clk 0:00:16.3]}
70... Kf5 {[%clk 0:00:22.9]} 71. Rg5+ {[%clk 0:00:15.5]} 71... Kf6 {[%clk
0:00:24.1]} 72. Ka7 {[%clk 0:00:12.4]} 72... Kg7 {[%clk 0:00:23.9]} 73. Re5
{[%clk 0:00:12]} 73... Bg2 {[%clk 0:00:25]} 74. h5 {[%clk 0:00:12.9]} 74... Kf6
{[%clk 0:00:22.7]} 75. Ra5 {[%clk 0:00:05.9]} 75... g5 {[%clk 0:00:22.9]} 76.
Ra6 {[%clk 0:00:07.3]} 76... Kg7 {[%clk 0:00:23.3]} 77. Kb8 {[%clk 0:00:07.4]}
77... g4 {[%clk 0:00:23.1]} 78. Ra7+ {[%clk 0:00:07.6]} 78... Kh6 {[%clk
0:00:24.6]} 79. b7 {[%clk 0:00:08.8]} 79... Rxb7+ {[%clk 0:00:24.2]} 80. Rxb7
{[%clk 0:00:09.8]} 80... Bxb7 {[%clk 0:00:26.1]} 0-1

[Event "*** Titled Tuesday 3|2 Blitz"]
[Site "Chess.com"]
[Date "2016.07.05"]
[Round "6"]
[White "MaestroASK"]
[Black "LaStreetCmaMaison"]
[Result "1-0"]
[WhiteElo "2496"]
[BlackElo "2475"]
[TimeControl "180+2"]
[EndTime "18:18:21 PDT"]
[Termination "MaestroASK won by checkmate"]

1. g3 {[%clk 0:02:48.5]} 1... e5 {[%clk 0:02:57.5]} 2. d3 {[%clk 0:02:48.8]}
2... h5 {[%clk 0:02:55.3]} 3. h4 {[%clk 0:02:49.2]} 3... Bc5 {[%clk 0:02:50]} 4.
Bg2 {[%clk 0:02:49.1]} 4... Nf6 {[%clk 0:02:46.1]} 5. e4 {[%clk 0:02:47.2]} 5...
Ng4 {[%clk 0:02:37.1]} 6. Nh3 {[%clk 0:02:47]} 6... d6 {[%clk 0:02:37.5]} 7. Qe2
{[%clk 0:02:45.8]} 7... c6 {[%clk 0:02:28.7]} 8. f3 {[%clk 0:02:43.9]} 8... Nf6
{[%clk 0:02:23.2]} 9. Nd2 {[%clk 0:02:43.4]} 9... Na6 {[%clk 0:02:09.2]} 10. Nb3
{[%clk 0:02:42.2]} 10... Bb6 {[%clk 0:02:08.9]} 11. Nf2 {[%clk 0:02:42.4]} 11...
Be6 {[%clk 0:02:08.9]} 12. Bh3 {[%clk 0:02:38.6]} 12... Qd7 {[%clk 0:02:04]} 13.
Bxe6 {[%clk 0:02:38.1]} 13... Qxe6 {[%clk 0:02:03.2]} 14. Kf1 {[%clk 0:02:38.6]}
14... O-O-O {[%clk 0:01:38.5]} 15. Kg2 {[%clk 0:02:37.9]} 15... Nd7 {[%clk
0:01:26]} 16. Be3 {[%clk 0:02:20.6]} 16... g6 {[%clk 0:01:18.8]} 17. Nh3 {[%clk
0:02:17.4]} 17... f5 {[%clk 0:01:12.5]} 18. Rhf1 {[%clk 0:02:08.3]} 18... Rdf8
{[%clk 0:01:10.4]} 19. Bxb6 {[%clk 0:02:07.4]} 19... axb6 {[%clk 0:01:08.1]} 20.
c3 {[%clk 0:02:03.8]} 20... f4 {[%clk 0:01:07.7]} 21. gxf4 {[%clk 0:01:49.6]}
21... exf4 {[%clk 0:00:57.9]} 22. d4 {[%clk 0:01:49.9]} 22... Nc7 {[%clk
0:00:58]} 23. Rae1 {[%clk 0:01:46.7]} 23... Qf6 {[%clk 0:00:58.4]} 24. Qf2
{[%clk 0:01:40.6]} 24... Ne6 {[%clk 0:00:57.1]} 25. Rg1 {[%clk 0:01:38.8]} 25...
g5 {[%clk 0:00:56.2]} 26. hxg5 {[%clk 0:01:39.1]} 26... Nxg5 {[%clk 0:00:56.9]}
27. Nxg5 {[%clk 0:01:39.6]} 27... Qxg5+ {[%clk 0:00:44.7]} 28. Kf1 {[%clk
0:01:40.1]} 28... Qb5+ {[%clk 0:00:45.4]} 29. Qe2 {[%clk 0:01:39.6]} 29... Qa4
{[%clk 0:00:46.4]} 30. Nc1 {[%clk 0:01:38.6]} 30... h4 {[%clk 0:00:44.7]} 31.
Rg6 {[%clk 0:01:16.7]} 31... h3 {[%clk 0:00:44.6]} 32. Kf2 {[%clk 0:01:02.2]}
32... Qa5 {[%clk 0:00:30.8]} 33. Rh1 {[%clk 0:00:51.3]} 33... Qh5 {[%clk
0:00:26.6]} 34. Rgg1 {[%clk 0:00:41.4]} 34... Qh4+ {[%clk 0:00:25]} 35. Kf1
{[%clk 0:00:42.1]} 35... Nf6 {[%clk 0:00:26.7]} 36. Qf2 {[%clk 0:00:41.5]} 36...
Qh5 {[%clk 0:00:21.5]} 37. Ne2 {[%clk 0:00:39.2]} 37... Qb5 {[%clk 0:00:22.1]}
38. b3 {[%clk 0:00:37.1]} 38... Qd3 {[%clk 0:00:18.9]} 39. b4 {[%clk 0:00:14.5]}
39... Nxe4 {[%clk 0:00:15]} 40. fxe4 {[%clk 0:00:11]} 40... f3 {[%clk
0:00:16.6]} 41. Ke1 {[%clk 0:00:11]} 41... Qb1+ {[%clk 0:00:16.7]} 42. Kd2
{[%clk 0:00:11.7]} 42... Qxa2+ {[%clk 0:00:16.9]} 43. Kd3 {[%clk 0:00:10.7]}
43... Qa6+ {[%clk 0:00:16.8]} 44. Ke3 {[%clk 0:00:11.3]} 44... Qc4 {[%clk
0:00:13]} 45. Rc1 {[%clk 0:00:09.4]} 45... fxe2 {[%clk 0:00:09.5]} 46. Qxe2
{[%clk 0:00:10.2]} 46... Qe6 {[%clk 0:00:11.4]} 47. Rcf1 {[%clk 0:00:10.3]}
47... Re8 {[%clk 0:00:12.3]} 48. Kd3 {[%clk 0:00:10.3]} 48... Rh4 {[%clk
0:00:12.9]} 49. Rf3 {[%clk 0:00:09.5]} 49... b5 {[%clk 0:00:14.4]} 50. e5 {[%clk
0:00:08.5]} 50... dxe5 {[%clk 0:00:12.7]} 51. dxe5 {[%clk 0:00:08.9]} 51... Qc4+
{[%clk 0:00:09.5]} 52. Kd2 {[%clk 0:00:10]} 52... Rd8+ {[%clk 0:00:10.2]} 53.
Ke1 {[%clk 0:00:10.9]} 53... Qg4 {[%clk 0:00:06.5]} 54. Rfxh3 {[%clk 0:00:10.1]}
54... Qxe2+ {[%clk 0:00:04.9]} 55. Kxe2 {[%clk 0:00:11]} 55... Re4+ {[%clk
0:00:03.9]} 56. Re3 {[%clk 0:00:12.1]} 56... Rxe3+ {[%clk 0:00:03.9]} 57. Kxe3
{[%clk 0:00:12.9]} 57... Re8 {[%clk 0:00:05.2]} 58. Ke4 {[%clk 0:00:13.9]} 58...
Kd7 {[%clk 0:00:06.3]} 59. Rh7+ {[%clk 0:00:14.7]} 59... Kc8 {[%clk 0:00:05.8]}
60. Kf5 {[%clk 0:00:14.1]} 60... Rf8+ {[%clk 0:00:07.4]} 61. Kg5 {[%clk
0:00:13.3]} 61... Rf3 {[%clk 0:00:08.3]} 62. e6 {[%clk 0:00:13.6]} 62... Rxc3
{[%clk 0:00:06.6]} 63. Rh8+ {[%clk 0:00:14.4]} 63... Kc7 {[%clk 0:00:07]} 64. e7
{[%clk 0:00:15.6]} 64... Re3 {[%clk 0:00:06.8]} 65. e8=Q {[%clk 0:00:16.5]}
65... Rxe8 {[%clk 0:00:08]} 66. Rxe8 {[%clk 0:00:17.5]} 66... b6 {[%clk
0:00:09.7]} 67. Re6 {[%clk 0:00:16.7]} 67... Kd7 {[%clk 0:00:10.4]} 68. Rh6
{[%clk 0:00:17.1]} 68... Kc7 {[%clk 0:00:10.5]} 69. Kf5 {[%clk 0:00:18.3]} 69...
c5 {[%clk 0:00:12.2]} 70. Ke5 {[%clk 0:00:18.8]} 70... cxb4 {[%clk 0:00:13.3]}
71. Kd4 {[%clk 0:00:20]} 71... Kb7 {[%clk 0:00:14.6]} 72. Kd3 {[%clk 0:00:19]}
72... Ka6 {[%clk 0:00:15.4]} 73. Kc2 {[%clk 0:00:20.3]} 73... Ka5 {[%clk
0:00:14.3]} 74. Kb3 {[%clk 0:00:21.3]} 74... Ka6 {[%clk 0:00:02.1]} 75. Kxb4
{[%clk 0:00:21.7]} 75... Ka7 {[%clk 0:00:02.2]} 76. Kxb5 {[%clk 0:00:22.7]}
76... Kb7 {[%clk 0:00:02.1]} 77. Rh7+ {[%clk 0:00:23.6]} 77... Kc8 {[%clk
0:00:02.2]} 78. Kxb6 {[%clk 0:00:24.8]} 78... Kd8 {[%clk 0:00:02.1]} 79. Kc6
{[%clk 0:00:25.9]} 79... Ke8 {[%clk 0:00:02.2]} 80. Kd6 {[%clk 0:00:26.9]} 80...
Kf8 {[%clk 0:00:02.2]} 81. Ke6 {[%clk 0:00:27.6]} 81... Kg8 {[%clk 0:00:02.2]}
82. Rf7 {[%clk 0:00:28.2]} 82... Kh8 {[%clk 0:00:02.1]} 83. Kf6 {[%clk
0:00:29.3]} 83... Kg8 {[%clk 0:00:02.1]} 84. Kg6 {[%clk 0:00:30.3]} 84... Kh8
{[%clk 0:00:02.1]} 85. Rf8# {[%clk 0:00:31.2]} 1-0